bitfinex/quotes_ETHUSD_20250821
["timestamp","ask_amount","ask_price","bid_price","bid_amount"]
[1755744197649,0.02,4291.8,4291.2,22.26684113]
[1755744198346,0.02,4291.8,4291.6,0.66]
[1755744198527,0.02,4291.8,4291.6,13.99885102]
[1755744198723,0.02,4291.8,4291.6,16.68515102]
[1755744198919,0.02,4291.8,4291.6,21.64731651]
[1755744199111,0.02,4291.8,4291.6,19.31718323]
[1755744200746,0.02,4291.8,4291.6,9.91103221]
[1755744200934,0.3009,4291.7,4291.6,16.80195102]
[1755744201335,0.3009,4291.7,4291.6,16.80095102]
[1755744201644,0.3009,4291.7,4291.6,13.18295102]
[1755744201946,0.3009,4291.7,4291.6,10.18295102]
[1755744202317,0.3009,4291.7,4291.6,16.80095102]
[1755744202536,0.3009,4291.7,4291.6,13.18295102]
[1755744202743,0.7343,4291.7,4291.6,16.80095102]
[1755744203055,0.7343,4291.7,4291.6,6.7348]
[1755744203453,0.7343,4291.7,4291.6,8.1648]
[1755744203854,0.3009,4291.7,4291.6,8.1648]
[1755744204151,0.002,4291.7,4291.6,10.8955951]
[1755744204560,0.002,4291.7,4291.6,10.5818951]
[1755744204960,0.3009,4291.7,4291.6,10.5818951]
[1755744205252,0.7343,4291.7,4291.6,18.23095102]
[1755744205439,0.3009,4291.7,4291.6,18.23095102]
[1755744205925,0.002,4291.7,4291.6,18.23095102]
[1755744206321,0.002,4291.7,4291.6,19.00335102]
[1755744207336,0.002,4291.7,4291.6,21.3334843]
[1755744207536,0.002,4291.7,4291.6,21.36549065]
[1755744207717,0.002,4291.7,4291.6,23.69562393]
[1755744208133,0.002,4291.7,4291.6,21.36549065]
[1755744209157,0.002,4291.7,4291.6,27.84962392]
[1755744210955,0.002,4291.7,4291.6,27.84862392]
[1755744213252,0.002,4291.7,4291.6,21.44279064]
[1755744213452,0.002,4291.7,4291.6,27.38992392]
[1755744214630,0.002,4291.7,4291.6,27.07622392]
[1755744215159,0.002,4291.7,4291.6,27.38992392]
[1755744215363,0.002,4291.7,4291.6,17.9837729]
[1755744215527,0.002,4291.7,4291.6,27.38992392]
[1755744215954,0.002,4291.7,4291.6,27.84862392]
[1755744216762,0.002,4291.7,4291.6,27.38992392]
[1755744217134,0.002,4291.7,4291.6,24.74609064]
[1755744217460,0.3009,4291.7,4291.6,27.07622392]
[1755744217663,0.002,4291.7,4291.6,27.07622392]
[1755744217863,0.002,4291.7,4291.6,25.05979064]
[1755744218065,0.002,4291.7,4291.6,24.74609064]
[1755744218562,0.002,4291.7,4291.6,27.07622392]
[1755744219457,0.002,4291.7,4291.6,27.38992392]
[1755744220463,0.002,4291.7,4291.6,27.84862392]
[1755744221264,0.002,4291.7,4291.6,27.94199992]
[1755744224147,0.002,4291.9,4291.7,5.99007898]
[1755744224343,0.002,4291.9,4291.8,12.27806456]
[1755744224532,0.002,4291.9,4291.8,12.69156432]
[1755744227953,0.002,4291.9,4291.8,12.25476432]
[1755744228284,0.002,4291.9,4291.8,12.69156432]
[1755744229793,0.002,4291.9,4291.8,8.63976432]
[1755744229949,0.002,4291.9,4291.8,12.25476432]
[1755744230284,0.002,4291.9,4291.8,17.83876431]
[1755744230469,0.3063,4291.9,4291.8,26.29631533]
[1755744230865,0.002,4292.2,4292.1,0.66]
[1755744231183,0.002,4292.2,4292.1,16.04229065]
[1755744231383,0.101,4292.2,4292.1,21.48895248]
[1755744231556,0.002,4292.2,4292.1,21.48895248]
[1755744231964,0.002,4292.2,4292.1,21.77655248]
[1755744232165,0.101,4292.2,4292.1,12.08280146]
[1755744232368,0.101,4292.2,4292.1,21.48895248]
[1755744232572,0.101,4292.2,4292.1,19.15909065]
[1755744233799,0.101,4292.2,4292.1,21.48895248]
[1755744234397,0.002,4292.2,4292.1,21.65975248]
[1755744234599,0.002,4292.2,4292.1,22.21335248]
[1755744234767,0.002,4292.2,4292.1,19.15909065]
[1755744235093,0.101,4292.2,4292.1,21.48895248]
[1755744235998,0.101,4292.2,4292.1,27.07295247]
[1755744236405,0.002,4292.2,4292.1,27.07295247]
[1755744236697,0.002,4292.2,4292.1,27.36055247]
[1755744237091,0.002,4292.2,4292.1,27.79735247]
[1755744239172,0.002,4292.2,4292.1,27.91295292]
[1755744240200,0.002,4292.2,4292.1,27.79735247]
[1755744240578,0.002,4292.2,4292.1,24.18335247]
[1755744240792,0.002,4292.2,4292.1,27.88971947]
[1755744241198,0.002,4292.2,4292.1,28.00477571]
[1755744244604,0.002,4292.2,4292.1,27.88971947]
[1755744245392,0.002,4292.2,4292.1,28.00873796]
[1755744249607,0.4745,4292.2,4292.1,3.90893963]
[1755744249779,0.4745,4292.2,4292.1,5.8178]
[1755744249980,0.4745,4292.2,4292.1,8.8178]
[1755744250478,0.4745,4292.2,4292.1,4.5468]
[1755744250678,0.4745,4292.2,4292.1,8.1578]
[1755744250908,0.4745,4292.2,4292.1,9.63368]
[1755744251507,0.4773,4292.2,4292.1,9.63368]
[1755744252080,0.4773,4292.2,4292.1,8.8178]
[1755744253584,0.4773,4292.2,4292.1,4.5468]
[1755744253800,0.4773,4292.2,4292.1,5.1578]
[1755744257893,0.101,4292.2,4292.1,5.1578]
[1755744260909,0.101,4292.2,4292.1,8.1578]
[1755744262607,0.4745,4292.2,4292.1,8.1578]
[1755744263643,0.101,4292.2,4292.1,8.1578]
[1755744272321,0.101,4292.2,4292.1,8.33657997]
[1755744274549,0.002,4292.2,4292.1,8.33657997]
[1755744274845,0.002,4292.2,4292.1,8.64597997]
[1755744275046,0.002,4292.2,4292.1,8.33657997]
[1755744277341,0.002,4292.2,4292.1,9.09977997]
[1755744278040,0.002,4292.2,4292.1,10.95047307]
[1755744279338,0.002,4292.2,4292.1,8.64597997]
[1755744279645,0.002,4292.2,4292.1,8.33657997]
[1755744281614,0.101,4292.2,4292.1,8.33657997]
[1755744281815,0.002,4292.2,4292.1,19.16293099]
[1755744282333,0.002,4292.2,4292.1,21.58617782]
[1755744282536,0.002,4292.2,4292.1,23.7448956]
[1755744282922,0.002,4292.2,4292.1,27.89889559]
[1755744286122,0.002,4292.2,4292.1,21.95803376]
[1755744286351,0.002,4292.2,4292.1,14.73768274]
[1755744286569,0.002,4292.2,4292.1,15.39768274]
[1755744287326,0.002,4292.2,4292.1,14.73768274]
[1755744287627,0.002,4292.2,4292.1,14.64429774]
[1755744287628,0.101,4292.2,4292.1,14.64429774]
[1755744287821,0.101,4292.2,4292.1,10.49029775]
[1755744288027,0.101,4292.2,4292.1,7.49029775]
[1755744288358,0.101,4292.2,4292.1,6.88429775]
[1755744288529,0.101,4292.2,4292.1,10.49029775]
[1755744289956,0.101,4292.2,4292.1,8.28157997]
[1755744290955,0.101,4292.2,4292.1,8.1028]
[1755744291765,0.002,4292.2,4292.1,8.1028]
[1755744292259,0.002,4292.2,4292.1,8.365]
[1755744292463,0.002,4292.2,4292.1,8.813]
[1755744293035,0.002,4292.2,4292.1,8.365]
[1755744293230,0.002,4292.2,4292.1,8.0528]
[1755744295270,0.101,4292.2,4292.1,4.4468]
[1755744295567,0.4745,4292.2,4292.1,5.0518]
[1755744296367,0.4745,4292.2,4292.1,4.935]
[1755744296670,0.002,4292.2,4292.1,5.812]
[1755744296961,0.002,4292.2,4292.1,5.364]
[1755744297144,0.002,4292.2,4292.1,5.0518]
[1755744297664,0.101,4292.2,4292.1,1.4468]
[1755744297832,0.101,4292.2,4292.1,4.935]
[1755744300681,0.002,4292.2,4292.1,5.6952]
[1755744300841,0.002,4292.2,4292.1,4.935]
[1755744301042,0.101,4292.2,4292.1,4.935]
[1755744301263,0.101,4292.2,4292.1,1.33]
[1755744301444,0.4773,4292.2,4292.1,4.934]
[1755744302270,0.4773,4292.2,4292.1,1.33]
[1755744302741,0.5941,4292.2,4292.1,1.33]
[1755744305446,0.2178,4292.2,4292.1,1.33]
[1755744305843,0.002,4292.2,4292.1,1.33]
[1755744306183,0.002,4292.2,4292.1,2.0902]
[1755744306342,0.002,4292.2,4292.1,2.23029861]
[1755744306541,0.002,4292.2,4292.1,7.05434357]
[1755744306743,0.002,4292.2,4292.1,7.03104496]
[1755744307050,0.002,4292.2,4292.1,7.69104496]
[1755744307255,0.002,4292.2,4292.1,10.02090679]
[1755744307948,0.002,4292.2,4292.1,13.62390679]
[1755744310376,0.002,4292.2,4292.1,13.79605751]
[1755744310976,0.002,4292.2,4292.1,13.88942751]
[1755744313382,0.002,4292.6,4292.5,2.98964472]
[1755744313683,0.002,4292.6,4292.5,25.51395664]
[1755744313856,0.002,4292.6,4292.5,25.4906602]
[1755744314179,0.002,4292.6,4292.5,25.9599602]
[1755744314557,0.002,4292.6,4292.5,26.0533192]
[1755744323968,0.002,4292.7,4292.6,5.98959045]
[1755744324163,0.002,4292.7,4292.6,8.64483008]
[1755744324368,0.002,4292.7,4292.6,9.11413008]
[1755744324783,0.002,4294.3,4293.0,2.98937339]
[1755744324966,0.002,4294.3,4293.7,2.98899364]
[1755744325171,0.002,4294.3,4293.7,25.30305044]
[1755744325370,0.002,4294.3,4293.7,25.41985044]
[1755744326188,0.002,4294.3,4293.7,25.88915044]
[1755744327899,0.307,4293.8,4293.7,19.1987568]
[1755744328202,0.307,4293.8,4293.7,25.12675044]
[1755744329262,0.02,4293.8,4293.7,25.12675044]
[1755744330590,0.02,4293.8,4293.7,25.41985044]
[1755744330789,0.02,4293.8,4293.7,25.88915044]
[1755744333090,0.02,4293.8,4293.7,25.12675044]
[1755744333487,0.119,4293.8,4293.7,25.12675044]
[1755744333688,0.02,4293.8,4293.7,25.12675044]
[1755744334101,0.022,4293.8,4293.7,25.41985044]
[1755744334489,0.022,4293.8,4293.7,25.88915044]
[1755744336969,0.022,4293.8,4293.7,25.88715044]
[1755744338001,0.121,4293.8,4293.7,4.86180579]
[1755744338302,0.4945,4293.8,4293.7,4.927]
[1755744338871,0.4945,4293.8,4293.7,7.927]
[1755744340676,0.4945,4293.8,4293.7,4.927]
[1755744341622,0.4945,4293.8,4293.7,1.33]
[1755744341779,0.4945,4293.8,4293.7,4.926]
[1755744344492,0.4945,4293.8,4293.7,1.33]
[1755744344698,0.4945,4293.8,4293.7,4.926]
[1755744344990,0.4945,4293.8,4293.7,1.33]
[1755744345175,0.4945,4293.8,4293.7,7.926]
[1755744345773,0.121,4293.8,4293.7,17.33215102]
[1755744346372,0.4973,4293.8,4293.7,17.33215102]
[1755744346620,0.121,4293.8,4293.7,13.73615102]
[1755744346810,0.121,4293.8,4293.7,17.33215102]
[1755744347397,0.4973,4293.8,4293.7,4.33]
[1755744347707,0.4973,4293.8,4293.7,7.926]
[1755744352389,0.121,4293.8,4293.7,7.926]
[1755744352784,0.121,4293.8,4293.7,17.33215102]
[1755744353191,0.121,4293.8,4293.7,7.926]
[1755744353380,0.4945,4293.8,4293.7,7.926]
[1755744353584,0.4945,4293.8,4293.7,4.33]
[1755744353785,0.4945,4293.8,4293.7,1.33]
[1755744354213,9.90065102,4293.8,4293.7,1.33]
[1755744354812,10.01919229,4293.8,4293.7,1.33]
[1755744355116,13.67919229,4293.8,4293.7,1.33]
[1755744355301,13.67919229,4293.8,4293.7,1.13079986]
[1755744355481,13.8913735,4293.8,4293.7,0.64561246]
[1755744356213,3.4918,4293.8,4293.7,0.64561246]
[1755744356587,12.89795102,4293.8,4293.7,0.64561246]
[1755744357112,13.55795102,4293.8,4293.7,0.64561246]
[1755744357884,13.49295102,4293.8,4293.7,0.64561246]
[1755744358516,9.89795102,4293.8,4293.7,0.64561246]
[1755744358816,0.4918,4293.8,4293.7,0.64561246]
[1755744359384,0.121,4293.8,4293.7,0.64561246]
[1755744359916,9.89795102,4293.8,4293.7,0.64561246]
[1755744360122,0.121,4293.8,4293.7,0.64561246]
[1755744360319,9.89795102,4293.8,4293.7,0.64561246]
[1755744360620,13.55795102,4293.8,4293.7,0.63191246]
[1755744360990,43.55795102,4293.8,4293.7,0.63191246]
[1755744361210,43.76967121,4293.8,4293.7,0.63191246]
[1755744361519,13.76967121,4293.8,4293.7,0.63191246]
[1755744362292,35.15569806,4293.8,4293.7,0.63191246]
[1755744362690,34.94397787,4293.8,4293.7,0.63191246]
[1755744363091,64.94397787,4293.8,4293.7,0.63191246]
[1755744363293,29.13282685,4293.8,4293.7,0.63191246]
[1755744363492,59.13282685,4293.8,4293.7,0.63191246]
[1755744364723,29.13282685,4293.8,4293.7,0.63191246]
[1755744366125,0.2,4292.8,4292.2,0.001]
[1755744366299,3.66,4292.2,4291.2,0.001]
[1755744366499,3.66,4291.7,4291.2,0.001]
[1755744366727,4.089,4291.5,4291.2,0.001]
[1755744367021,4.089,4291.5,4291.0,0.001]
[1755744367022,3.66,4291.3,4291.0,0.001]
[1755744367229,52.04602685,4291.0,4289.0,0.4424]
[1755744367407,55.35822685,4291.0,4289.0,0.4424]
[1755744367720,55.51132685,4291.0,4290.4,0.4]
[1755744369902,55.71132685,4291.0,4290.4,0.4]
[1755744370102,33.66,4290.9,4290.4,0.4]
[1755744370419,25.35662685,4290.5,4290.4,0.4]
[1755744370624,64.68942685,4290.5,4290.4,0.4]
[1755744370920,64.84412685,4290.5,4290.4,0.4]
[1755744371119,3.66,4290.4,4288.5,0.001]
[1755744371323,34.1252,4290.4,4288.8,0.4593]
[1755744371552,25.04602685,4289.9,4288.8,0.02]
[1755744371835,24.38602685,4289.5,4288.8,0.02]
[1755744371995,58.95762685,4289.5,4288.8,0.02]
[1755744372202,59.24002685,4289.5,4288.8,0.02]
[1755744372411,3.66,4289.4,4288.8,0.02]
[1755744372638,25.46112685,4288.9,4288.8,0.02]
[1755744372807,59.07612685,4288.9,4288.8,0.02]
[1755744373329,59.24302685,4288.9,4288.8,0.02]
[1755744373938,28.96032685,4288.9,4288.8,0.02]
[1755744374231,3.0,4288.9,4288.8,0.3328]
[1755744374433,6.7318,4288.9,4288.8,0.3328]
[1755744374732,3.1168,4288.9,4288.8,0.3328]
[1755744374900,6.7368,4288.9,4288.8,0.7721]
[1755744375104,3.7378,4288.9,4288.8,0.7721]
[1755744375298,0.112518,4288.9,4288.8,0.7721]
[1755744375521,3.733518,4288.9,4288.8,0.7721]
[1755744376336,3.733518,4288.9,4288.8,0.3328]
[1755744376542,3.733518,4288.9,4288.8,0.02]
[1755744376703,4.492518,4288.9,4288.8,0.02]
[1755744376902,4.856718,4288.9,4288.8,0.02]
[1755744377201,37.856718,4288.9,4288.8,0.02]
[1755744377436,3.871518,4288.9,4288.8,0.02]
[1755744377730,3.7768,4288.9,4288.8,0.02]
[1755744378103,7.5064,4288.9,4288.8,0.02]
[1755744378298,7.868,4288.9,4288.8,0.02]
[1755744378547,37.868,4288.9,4288.8,0.02]
[1755744379304,33.4192,4288.9,4288.8,0.02]
[1755744379506,6.63,4288.9,4288.8,0.3328]
[1755744379838,28.67602685,4288.9,4288.8,0.02]
[1755744380139,28.77232685,4288.9,4288.8,0.02]
[1755744380343,7.294,4288.9,4288.8,0.02]
[1755744380515,7.294,4288.9,4288.8,0.3328]
[1755744380706,3.66,4288.9,4288.8,0.7721]
[1755744380906,7.294,4288.9,4288.8,0.7721]
[1755744381102,6.634,4288.9,4288.8,0.7721]
[1755744382327,3.0,4288.9,4288.8,0.7721]
[1755744382524,21.38602685,4290.1,4288.8,0.7721]
[1755744382703,3.0,4289.9,4288.9,0.4393]
[1755744382903,3.633,4289.8,4288.9,0.4393]
[1755744383727,3.0,4289.7,4288.9,0.4393]
[1755744384239,5.72103837,4290.5,4288.9,0.4393]
[1755744384444,3.632,4290.4,4289.7,0.3128]
[1755744384735,3.632,4290.3,4289.8,0.4393]
[1755744384923,3.0,4290.1,4289.8,0.4393]
[1755744385129,3.0,4290.1,4290.0,0.3128]
[1755744385712,3.631,4290.1,4290.0,0.7521]
[1755744387117,2.80035937,4291.0,4290.0,0.7521]
[1755744387324,3.638,4290.7,4290.1,0.4393]
[1755744388319,2.80035937,4291.0,4290.6,0.3128]
[1755744388510,3.636,4290.7,4290.6,0.3128]
[1755744388729,3.636,4290.7,4290.6,0.7521]
[1755744389238,3.636,4290.7,4288.4,2.3318586]
[1755744389239,3.735,4290.7,4289.8,0.4393]
[1755744389620,0.1168,4289.9,4289.8,0.4393]
[1755744389820,3.7578,4289.9,4289.8,0.7521]
[1755744390353,3.7578,4289.9,4289.2,0.4393]
[1755744390511,3.641,4289.9,4289.2,0.4393]
[1755744390838,0.1168,4289.3,4289.2,0.4393]
[1755744391050,3.7568,4289.3,4289.2,0.7521]
[1755744395011,0.1168,4289.3,4289.2,0.7521]
[1755744396241,0.1168,4289.7,4289.2,0.7521]
[1755744396430,3.635,4290.3,4289.4,21.38602685]
[1755744396746,3.636,4290.4,4290.2,0.3128]
[1755744397054,3.635,4290.5,4290.3,0.4393]
[1755744397263,3.635,4290.5,4290.4,0.7521]
[1755744397549,3.7518,4290.5,4290.4,0.7521]
[1755744398125,0.1168,4290.5,4290.4,0.7521]
[1755744398657,0.1168,4290.5,4290.4,0.3128]
[1755744398819,0.1168,4290.5,4290.4,0.7521]
[1755744399244,0.1188,4290.5,4290.4,0.7521]
[1755744399662,0.1188,4290.5,4289.4,3.0]
[1755744399844,0.3044,4290.5,4289.6,0.4393]
[1755744400149,0.1168,4289.2,4288.8,0.021]
[1755744400329,0.1168,4289.2,4289.1,0.3128]
[1755744400530,0.1168,4289.2,4289.1,0.7521]
[1755744404663,0.002,4290.5,4289.1,0.7521]
[1755744404664,0.1168,4289.4,4289.1,0.7521]
[1755744404820,0.1168,4289.4,4289.2,0.4633]
[1755744405022,0.1168,4289.4,4289.3,0.3106]
[1755744405542,0.1168,4289.4,4289.3,0.7739]
[1755744409724,0.1168,4289.9,4289.3,3.8907]
[1755744409925,0.1168,4289.9,4289.4,0.48661328]
[1755744410148,0.1168,4289.9,4289.8,0.3106]
[1755744410352,0.1168,4289.9,4289.8,0.7739]
[1755744412377,0.1168,4289.9,4288.8,0.4843]
[1755744412378,21.48502685,4289.9,4288.8,0.4843]
[1755744413560,21.48502685,4289.9,4288.8,0.021]
[1755744414050,21.38602685,4289.5,4288.8,0.021]
[1755744414294,0.1017,4288.9,4288.8,0.021]
[1755744414476,3.626,4289.1,4288.8,0.021]
[1755744414812,0.1017,4288.9,4288.8,0.021]
[1755744415650,0.002,4290.5,4288.8,0.021]
[1755744415852,21.38602685,4289.7,4288.8,0.021]
[1755744416068,3.624,4289.6,4288.8,0.021]
[1755744416965,0.001,4288.9,4288.8,0.021]
[1755744417780,3.625,4288.9,4288.8,0.021]
[1755744420814,21.38602685,4289.7,4288.8,0.3316]
[1755744421015,3.621,4289.6,4288.8,0.7949]
[1755744421297,25.00902685,4290.1,4289.0,3.0]
[1755744421507,21.38602685,4289.7,4288.9,0.4633]
[1755744421661,3.9926,4290.1,4288.9,0.4633]
[1755744421662,25.37862685,4290.1,4288.9,0.4633]
[1755744421868,25.00902685,4290.1,4288.9,0.4633]
[1755744422167,21.38802685,4290.1,4288.9,0.4633]
[1755744422379,0.1168,4289.1,4288.9,0.4633]
[1755744422582,0.1168,4289.1,4289.0,0.7739]
[1755744424062,0.1168,4289.4,4289.0,0.7739]
[1755744424300,0.1168,4289.4,4289.1,0.4633]
[1755744424775,3.622,4289.7,4288.8,0.021]
[1755744424776,0.1168,4289.2,4288.8,0.021]
[1755744424980,0.1168,4288.9,4288.8,0.021]
[1755744425469,0.1168,4288.9,4288.8,0.7949]
[1755744428969,0.2158,4288.9,4288.8,0.021]
[1755744432608,0.2178,4288.9,4288.8,0.021]
[1755744432906,0.1188,4288.9,4288.8,0.021]
[1755744433102,0.1188,4288.9,4288.8,0.3304]
[1755744433303,0.1188,4288.9,4288.8,0.7837]
[1755744434077,0.002,4288.9,4288.8,0.7837]
[1755744435429,0.002,4288.9,4288.8,6.14583963]
[1755744435921,0.002,4288.9,4288.8,6.80583963]
[1755744436123,0.002,4288.9,4288.8,6.92263963]
[1755744438723,0.002,4288.9,4288.8,9.25429417]
[1755744443101,0.002,4288.9,4288.8,13.40829416]
[1755744445027,0.002,4288.9,4288.8,17.02129416]
[1755744447634,0.002,4288.9,4288.8,17.01929416]
[1755744448027,0.002,4289.8,4289.0,0.66]
[1755744448229,0.002,4289.8,4289.7,27.68659219]
[1755744448553,0.002,4289.8,4289.7,35.56839218]
[1755744448933,0.002,4289.8,4289.7,36.02169218]
[1755744449141,0.002,4289.8,4289.7,36.11511318]
[1755744449664,0.002,4290.1,4290.0,5.99100233]
[1755744449824,0.002,4290.1,4290.0,16.54534195]
[1755744450024,0.002,4290.1,4290.0,16.99864195]
[1755744452340,0.002,4290.1,4290.0,17.17374695]
[1755744452758,0.002,4290.1,4290.0,17.17074695]
[1755744453258,0.002,4290.1,4290.0,17.26416095]
[1755744454538,0.002,4290.1,4290.0,10.21085862]
[1755744454739,0.101,4290.1,4290.0,0.291905]
[1755744454943,0.101,4290.1,4290.0,3.899905]
[1755744455449,0.002,4290.1,4290.0,28.59533185]
[1755744455777,0.002,4290.1,4290.0,32.03963418]
[1755744456132,0.002,4290.1,4290.0,25.64733185]
[1755744456460,0.002,4290.1,4290.0,31.62047148]
[1755744456828,0.002,4290.1,4290.0,34.40477381]
[1755744460063,0.002,4290.1,4290.0,34.49818081]
[1755744460469,0.002,4290.1,4290.0,36.95518081]
[1755744460837,0.002,4290.1,4290.0,40.8406688]
[1755744461258,0.002,4290.1,4290.0,40.9340758]
[1755744462767,0.022,4290.8,4290.4,2.990785]
[1755744462969,0.022,4290.8,4290.4,39.51988756]
[1755744463136,0.022,4290.8,4290.7,5.99062204]
[1755744463342,0.022,4290.8,4290.7,10.00612204]
[1755744463542,0.022,4290.8,4290.7,10.45902204]
[1755744464868,0.022,4290.8,4290.7,14.61302203]
[1755744465084,0.022,4290.8,4290.7,16.97516166]
[1755744466146,0.022,4290.8,4290.7,17.06855566]
[1755744467760,0.002,4291.0,4290.9,2.99051341]
[1755744467994,0.02,4291.8,4291.6,3.66]
[1755744468289,0.02,4291.8,4291.7,31.29810661]
[1755744468494,0.02,4291.8,4291.7,33.75174546]
[1755744468659,0.02,4291.8,4291.7,34.20464546]
[1755744469769,0.02,4291.8,4291.7,33.46204546]
[1755744469987,0.3318,4291.8,4291.7,27.52496648]
[1755744470298,0.488,4291.8,4291.7,31.13196648]
[1755744471893,0.488,4291.8,4291.7,3.7768]
[1755744472085,0.488,4291.8,4291.7,6.7228]
[1755744472791,0.488,4291.8,4291.7,3.7228]
[1755744475391,0.488,4291.8,4290.9,3.0]
[1755744475605,0.3318,4291.8,4291.3,0.1168]
[1755744475901,0.3318,4291.8,4291.5,3.0]
[1755744476075,0.3318,4291.8,4291.7,3.0]
[1755744476277,0.3318,4291.8,4291.7,3.605]
[1755744476578,0.3334,4291.8,4291.7,3.605]
[1755744478323,0.3318,4291.8,4291.7,3.605]
[1755744480212,0.3318,4291.8,4291.6,0.1168]
[1755744480213,0.3334,4291.8,4291.6,0.1168]
[1755744480377,0.3334,4291.8,4290.9,0.1168]
[1755744480378,0.1184,4291.7,4290.9,0.1168]
[1755744480580,0.3087,4291.0,4290.3,3.605]
[1755744480908,0.1215,4290.9,4290.4,3.0]
[1755744481079,0.3103,4290.5,4290.4,3.0]
[1755744481409,0.4696,4290.5,4290.4,3.0]
[1755744481710,0.4696,4290.5,4290.3,3.0]
[1755744481908,0.1593,4290.4,4290.2,3.7218]
[1755744482123,0.4696,4290.3,4290.2,6.7218]
[1755744482487,0.4696,4290.3,4289.8,0.021]
[1755744482488,0.4696,4290.3,4290.1,3.604]
[1755744482812,0.4696,4290.3,4290.1,6.604]
[1755744482813,0.1168,4290.2,4290.1,6.604]
[1755744483012,0.4241,4290.2,4290.1,6.604]
[1755744483320,0.1623,4291.0,4290.2,3.0]
[1755744483544,0.1168,4290.7,4290.3,0.02330839]
[1755744483812,0.1168,4290.7,4290.2,0.02330893]
[1755744484019,0.1188,4291.0,4290.5,3.0]
[1755744484189,0.099,4290.6,4290.4,3.1168]
[1755744484582,0.1188,4291.0,4290.5,22.35903415]
[1755744484819,0.002,4291.0,4290.9,24.38602685]
[1755744485026,0.002,4291.0,4290.9,29.05852685]
[1755744485197,0.002,4291.0,4290.9,29.51142685]
[1755744485587,0.002,4291.0,4290.9,31.84194026]
[1755744485784,0.002,4291.0,4290.9,34.20407989]
[1755744485983,0.02,4291.8,4291.7,25.04602685]
[1755744486219,0.02,4291.8,4291.7,31.27380583]
[1755744486436,0.02,4291.8,4291.7,31.39060583]
[1755744486734,0.02,4291.8,4291.7,31.84350583]
[1755744486885,0.002,4291.9,4291.8,5.99002469]
[1755744487203,0.02,4292.8,4292.6,3.66]
[1755744487403,0.02,4292.8,4291.7,29.80304546]
[1755744487404,0.02,4292.8,4292.7,29.08782221]
[1755744487726,0.02,4292.8,4292.7,29.06452685]
[1755744487887,0.02,4292.8,4292.7,29.51742685]
[1755744488089,0.02,4292.8,4292.7,31.87956648]
[1755744489919,0.02,4292.8,4292.7,32.0565201]
[1755744491589,0.022,4293.8,4292.9,0.66]
[1755744491786,0.022,4293.8,4293.7,25.34422685]
[1755744492013,0.022,4293.8,4293.7,28.97422685]
[1755744492212,0.022,4293.8,4293.7,31.27079025]
[1755744492539,0.022,4293.8,4293.7,27.64079025]
[1755744492922,0.121,4293.8,4293.7,5.2965634]
[1755744493127,0.121,4293.8,4293.7,6.629]
[1755744493325,0.4879,4293.8,4293.7,6.629]
[1755744495147,0.4879,4293.8,4293.7,6.63]
[1755744496135,0.121,4293.8,4293.7,6.63]
[1755744496528,0.121,4293.8,4293.7,3.0]
[1755744496736,0.121,4293.8,4293.7,6.627]
[1755744497140,0.022,4293.8,4293.7,6.627]
[1755744497649,0.121,4293.8,4293.7,6.627]
[1755744498353,0.121,4293.8,4293.7,3.0]
[1755744498559,0.121,4293.8,4293.7,6.625]
[1755744499057,0.022,4293.8,4293.7,6.625]
[1755744499234,0.022,4293.8,4293.7,6.9232]
[1755744499551,0.022,4293.8,4293.7,7.3706]
[1755744499761,0.121,4293.8,4293.7,6.625]
[1755744499920,0.121,4293.8,4293.7,3.0]
[1755744500323,0.121,4293.8,4293.7,6.623]
[1755744500857,0.022,4293.8,4293.7,6.623]
[1755744501060,0.022,4293.8,4293.7,8.0309]
[1755744501634,0.022,4293.8,4293.7,8.1477]
[1755744503259,0.022,4293.8,4293.7,8.8077]
[1755744503468,0.3946,4293.8,4293.7,3.0]
[1755744503768,0.3946,4293.8,4293.7,6.621]
[1755744504139,0.3218,4293.8,4293.4,0.1168]
[1755744504438,0.3218,4293.8,4293.5,3.622]
[1755744504643,0.3218,4293.8,4293.6,3.0]
[1755744505158,0.022,4293.8,4293.7,6.9202]
[1755744505460,0.3195,4293.8,4293.7,3.0]
[1755744505652,0.3946,4293.8,4293.7,6.622]
[1755744505849,0.3195,4293.8,4293.7,6.622]
[1755744506565,0.022,4293.8,4293.7,6.622]
[1755744506741,0.022,4293.8,4293.7,7.2842]
[1755744506960,0.022,4293.8,4293.7,7.5824]
[1755744507164,0.022,4293.8,4293.7,7.2842]
[1755744507350,0.022,4293.8,4293.7,6.622]
[1755744509084,0.121,4293.8,4293.7,6.622]
[1755744510990,0.022,4293.8,4293.7,6.9202]
[1755744511158,0.022,4293.8,4293.7,28.75362685]
[1755744511360,0.022,4293.8,4293.7,31.11576648]
[1755744511565,0.022,4293.8,4293.7,31.89256648]
[1755744514050,0.022,4293.8,4293.7,10.50653963]
[1755744514492,0.022,4293.8,4293.7,8.1444]
[1755744515668,0.022,4293.8,4293.7,8.1404]
[1755744515867,0.022,4293.8,4293.7,10.46939364]
[1755744516186,0.022,4293.8,4293.7,8.1404]